[Event "Juniorallsvenskan 2019, Division 1 and 2"]
[Site "Molnlycke kulturhus, Biblioteksgatan 2, Molnlycke, Sweden"]
[Date "2019.11.24"]
[Round "5.7"]
[White "Strom-Engdahl, Alexander"]
[Black "Sundin, Emanuel"]
[Result "1-0"]
[TimeControl "90 minutes + 30 seconds per move from move one"]
[WhiteFideId "1741586"]
[BlackFideId "1719173"]
[WhiteElo "1940"]
[BlackElo "2093"]

1. c4 {[%clk 01:30:38]} {[%emt 00:00:21]} g6 {[%clk 01:30:27]} {[%emt
00:00:34]} 2. g3 {[%clk 01:30:31]} {[%emt 00:00:36]} Bg7 {[%clk 01:30:51]}
{[%emt 00:00:06]} 3. Bg2 {[%clk 01:30:54]} {[%emt 00:00:07]} e5 {[%clk
01:30:09]} {[%emt 00:01:12]} 4. Nc3 {[%clk 01:31:07]} {[%emt 00:00:17]} d6
{[%clk 01:30:16]} {[%emt 00:00:23]} 5. d3 {[%clk 01:29:52]} {[%emt 00:01:45]}
f5 {[%clk 01:28:59]} {[%emt 00:01:47]} 6. e3 {[%clk 01:28:10]} {[%emt
00:02:12]} Nf6 {[%clk 01:29:01]} {[%emt 00:00:28]} 7. b4 {[%clk 01:26:36]}
{[%emt 00:02:04]} a5 {[%clk 01:24:46]} {[%emt 00:04:45]} 8. b5 {[%clk
01:24:12]} {[%emt 00:02:54]} O-O {[%clk 01:24:08]} {[%emt 00:01:08]} 9. Nge2
{[%clk 01:23:23]} {[%emt 00:01:19]} c6 {[%clk 01:21:46]} {[%emt 00:02:52]} 10.
a4 {[%clk 01:19:03]} {[%emt 00:04:50]} Be6 {[%clk 01:20:02]} {[%emt 00:02:13]}
11. Ba3 {[%clk 01:17:22]} {[%emt 00:02:11]} g5 {[%clk 01:11:05]} {[%emt
00:09:27]} 12. h4 {[%clk 01:04:33]} {[%emt 00:13:19]} gxh4 {[%clk 01:03:27]}
{[%emt 00:08:08]} 13. Rxh4 {[%clk 01:04:10]} {[%emt 00:00:53]} Ng4 {[%clk
00:57:45]} {[%emt 00:06:13]} 14. Bf3 {[%clk 00:51:37]} {[%emt 00:13:03]} Bf6
{[%clk 00:53:21]} {[%emt 00:04:54]} 15. Rh1 {[%clk 00:51:26]} {[%emt 00:00:41]}
Rf7 {[%clk 00:50:25]} {[%emt 00:03:26]} 16. Rb1 {[%clk 00:49:54]} {[%emt
00:02:02]} Rg7 {[%clk 00:38:12]} {[%emt 00:12:42]} 17. bxc6 {[%clk 00:47:46]}
{[%emt 00:02:38]} Nxc6 {[%clk 00:37:25]} {[%emt 00:01:18]} 18. Nd5 {[%clk
00:42:18]} {[%emt 00:05:57]} Rc8 {[%clk 00:29:40]} {[%emt 00:08:15]} 19. Bxg4
{[%clk 00:39:42]} {[%emt 00:03:06]} fxg4 {[%clk 00:28:59]} {[%emt 00:01:11]} 20.
Nec3 {[%clk 00:37:04]} {[%emt 00:03:08]} Rg6 {[%clk 00:20:39]} {[%emt
00:08:49]} 21. Rxb7 {[%clk 00:34:11]} {[%emt 00:03:23]} Bg5 {[%clk 00:11:51]}
{[%emt 00:09:18]} 22. Rbxh7 {[%clk 00:33:43]} {[%emt 00:00:58]} 1-0

[Event "Juniorallsvenskan 2019, Division 1 and 2"]
[Site "Molnlycke kulturhus, Biblioteksgatan 2, Molnlycke, Sweden"]
[Date "2019.11.24"]
[Round "5.8"]
[White "Hall, Alexander"]
[Black "Lindholm, Gustav"]
[Result "1/2-1/2"]
[TimeControl "90 minutes + 30 seconds per move from move one"]
[WhiteFideId "1738933"]
[BlackFideId "1736515"]
[WhiteElo "1887"]
[BlackElo "1922"]

1. d4 {[%clk 01:30:49]} {[%emt 00:00:11]} d5 {[%clk 01:30:45]} {[%emt
00:00:15]} 2. c4 {[%clk 01:31:15]} {[%emt 00:00:04]} c6 {[%clk 01:31:09]}
{[%emt 00:00:05]} 3. Nf3 {[%clk 01:31:43]} {[%emt 00:00:03]} Nf6 {[%clk
01:31:31]} {[%emt 00:00:08]} 4. Qc2 {[%clk 01:32:10]} {[%emt 00:00:03]} e6
{[%clk 01:31:08]} {[%emt 00:00:53]} 5. Nc3 {[%clk 01:30:44]} {[%emt 00:01:56]}
Bd6 {[%clk 01:31:19]} {[%emt 00:00:18]} 6. Bg5 {[%clk 01:30:46]} {[%emt
00:00:27]} Nbd7 {[%clk 01:30:17]} {[%emt 00:01:34]} 7. e3 {[%clk 01:25:48]}
{[%emt 00:05:28]} O-O {[%clk 01:28:19]} {[%emt 00:02:28]} 8. b3 {[%clk
01:20:29]} {[%emt 00:05:49]} Qa5 {[%clk 01:24:06]} {[%emt 00:04:42]} 9. c5
{[%clk 01:11:22]} {[%emt 00:09:37]} Ne4 {[%clk 01:17:13]} {[%emt 00:07:24]} 10.
Rc1 {[%clk 01:10:46]} {[%emt 00:01:01]} Nxc3 {[%clk 01:00:07]} {[%emt
00:17:41]} 11. Qxc3 {[%clk 01:11:06]} {[%emt 00:00:10]} Qxc3+ {[%clk 01:00:19]}
{[%emt 00:00:19]} 12. Rxc3 {[%clk 01:11:32]} {[%emt 00:00:04]} Bc7 {[%clk
01:00:43]} {[%emt 00:00:06]} 13. b4 {[%clk 01:10:19]} {[%emt 00:01:42]} f6
{[%clk 01:00:52]} {[%emt 00:00:22]} 14. Bh4 {[%clk 01:08:56]} {[%emt 00:01:48]}
e5 {[%clk 00:59:12]} {[%emt 00:02:15]} 15. a4 {[%clk 01:04:15]} {[%emt
00:05:10]} a6 {[%clk 00:57:42]} {[%emt 00:02:01]} 16. Be2 {[%clk 01:02:00]}
{[%emt 00:02:45]} Re8 {[%clk 00:55:44]} {[%emt 00:02:28]} 17. O-O {[%clk
00:55:40]} {[%emt 00:06:50]} Nf8 {[%clk 00:46:22]} {[%emt 00:09:53]} 18. Bg3
{[%clk 00:38:11]} {[%emt 00:17:56]} Bg4 {[%clk 00:40:35]} {[%emt 00:06:19]} 19.
Rc2 {[%clk 00:32:19]} {[%emt 00:06:17]} Ng6 {[%clk 00:34:11]} {[%emt 00:06:58]}
20. h3 {[%clk 00:28:41]} {[%emt 00:04:05]} Bd7 {[%clk 00:29:59]} {[%emt
00:04:44]} 21. Rb2 {[%clk 00:27:47]} {[%emt 00:01:23]} Bb8 {[%clk 00:21:42]}
{[%emt 00:08:49]} 22. Rd1 {[%clk 00:23:14]} {[%emt 00:05:02]} f5 {[%clk
00:15:25]} {[%emt 00:06:49]} 23. dxe5 {[%clk 00:21:00]} {[%emt 00:02:44]} Nxe5
{[%clk 00:14:35]} {[%emt 00:01:20]} 24. Nxe5 {[%clk 00:16:51]} {[%emt
00:04:39]} Bxe5 {[%clk 00:14:55]} {[%emt 00:00:10]} 25. Bxe5 {[%clk 00:17:19]}
{[%emt 00:00:03]} Rxe5 {[%clk 00:15:19]} {[%emt 00:00:05]} 26. b5 {[%clk
00:17:29]} {[%emt 00:00:20]} axb5 {[%clk 00:14:23]} {[%emt 00:01:26]} 27. axb5
{[%clk 00:17:53]} {[%emt 00:00:05]} Ra5 {[%clk 00:14:10]} {[%emt 00:00:44]} 28.
Bf3 {[%clk 00:15:27]} {[%emt 00:02:57]} Kf7 {[%clk 00:12:12]} {[%emt 00:02:27]}
29. bxc6 {[%clk 00:13:21]} {[%emt 00:02:36]} Bxc6 {[%clk 00:12:36]} {[%emt
00:00:06]} 30. Rc1 {[%clk 00:12:25]} {[%emt 00:01:23]} Kf6 {[%clk 00:10:36]}
{[%emt 00:02:32]} 31. Kh2 {[%clk 00:12:19]} {[%emt 00:00:35]} g5 {[%clk
00:10:02]} {[%emt 00:01:05]} 32. g4 {[%clk 00:12:05]} {[%emt 00:00:41]} Ra4
{[%clk 00:08:27]} {[%emt 00:02:07]} 33. gxf5 {[%clk 00:08:41]} {[%emt
00:03:55]} Rxf5 {[%clk 00:08:43]} {[%emt 00:00:13]} 34. Bg4 {[%clk 00:09:02]}
{[%emt 00:00:09]} Re5 {[%clk 00:08:40]} {[%emt 00:00:34]} 35. Bc8 {[%clk
00:09:19]} {[%emt 00:00:12]} Re7 {[%clk 00:08:40]} {[%emt 00:00:30]} 36. Rcb1
{[%clk 00:09:14]} {[%emt 00:00:35]} Ra7 {[%clk 00:08:05]} {[%emt 00:01:05]} 37.
Kg3 {[%clk 00:09:12]} {[%emt 00:00:30]} h5 {[%clk 00:08:13]} {[%emt 00:00:25]}
38. h4 {[%clk 00:09:30]} {[%emt 00:00:11]} g4 {[%clk 00:08:16]} {[%emt
00:00:27]} 39. Rb4 {[%clk 00:08:29]} {[%emt 00:01:28]} Re4 {[%clk 00:05:57]}
{[%emt 00:02:53]} 40. Rxe4 {[%clk 00:06:26]} {[%emt 00:02:33]} dxe4 {[%clk
00:06:22]} {[%emt 00:00:04]} 41. Kf4 {[%clk 00:04:28]} {[%emt 00:02:28]} Ra2
{[%clk 00:06:27]} {[%emt 00:00:24]} 42. Kg3 {[%clk 00:03:00]} {[%emt 00:01:59]}
Ra7 {[%clk 00:05:35]} {[%emt 00:01:21]} 43. Kf4 {[%clk 00:02:50]} {[%emt
00:00:40]} Ra2 {[%clk 00:06:03]} {[%emt 00:00:02]} 44. Kg3 {[%clk 00:02:02]}
{[%emt 00:01:16]} Ra7 {[%clk 00:06:31]} {[%emt 00:00:03]} 45. Kf4 {[%clk
00:00:44]} {[%emt 00:01:49]} Ra2 {[%clk 00:06:59]} {[%emt 00:00:02]} 46. Kxe4
{[%emt 00:00:13]} Ke5+ 47. Rd1+ {[%emt 00:00:02]} Ra7+ {[%emt 00:00:04]}
1/2-1/2

[Event "Juniorallsvenskan 2019, Division 1 and 2"]
[Site "Molnlycke kulturhus, Biblioteksgatan 2, Molnlycke, Sweden"]
[Date "2019.11.24"]
[Round "5.9"]
[White "Jogstad, Martin"]
[Black "Pantzar, Milton"]
[Result "0-1"]
[TimeControl "90 minutes + 30 seconds per move from move one"]
[WhiteTitle "FM"]
[BlackTitle "FM"]
[WhiteFideId "1715364"]
[BlackFideId "1721003"]
[WhiteElo "2305"]
[BlackElo "2406"]

1. d4 {[%clk 01:30:57]} {[%emt 00:00:02]} d5 {[%clk 01:30:32]} {[%emt
00:00:29]} 2. c4 {[%clk 01:31:22]} {[%emt 00:00:05]} c6 {[%clk 01:30:39]}
{[%emt 00:00:23]} 3. cxd5 {[%clk 01:31:49]} {[%emt 00:00:03]} cxd5 {[%clk
01:31:05]} {[%emt 00:00:05]} 4. Bf4 {[%clk 01:32:14]} {[%emt 00:00:04]} Nf6
{[%clk 01:30:38]} {[%emt 00:00:57]} 5. Nc3 {[%clk 01:32:37]} {[%emt 00:00:07]}
Nc6 {[%clk 01:31:02]} {[%emt 00:00:06]} 6. e3 {[%clk 01:33:03]} {[%emt
00:00:05]} a6 {[%clk 01:29:59]} {[%emt 00:01:34]} 7. Be2 {[%clk 01:33:09]}
{[%emt 00:00:24]} Bf5 {[%clk 01:24:00]} {[%emt 00:06:29]} 8. Rc1 {[%clk
01:33:23]} {[%emt 00:00:16]} e6 {[%clk 01:19:57]} {[%emt 00:04:33]} 9. Nf3
{[%clk 01:15:43]} {[%emt 00:18:10]} Bd6 {[%clk 01:12:58]} {[%emt 00:07:29]} 10.
Bxd6 {[%clk 01:15:45]} {[%emt 00:00:28]} Qxd6 {[%clk 01:13:25]} {[%emt
00:00:04]} 11. Qb3 {[%clk 01:13:30]} {[%emt 00:02:43]} O-O {[%clk 01:09:48]}
{[%emt 00:04:09]} 12. O-O {[%clk 01:12:27]} {[%emt 00:01:33]} b5 {[%clk
01:06:29]} {[%emt 00:03:50]} 13. a4 {[%clk 01:06:50]} {[%emt 00:06:07]} Na5
{[%clk 01:03:53]} {[%emt 00:03:06]} 14. Qa2 {[%clk 01:06:42]} {[%emt 00:00:38]}
b4 {[%clk 01:03:15]} {[%emt 00:01:08]} 15. Nb1 {[%clk 01:06:35]} {[%emt
00:00:36]} Ne4 {[%clk 00:53:19]} {[%emt 00:10:26]} 16. Nbd2 {[%clk 01:05:31]}
{[%emt 00:01:34]} Nxd2 {[%clk 00:44:49]} {[%emt 00:09:01]} 17. Nxd2 {[%clk
01:05:56]} {[%emt 00:00:04]} Rfc8 {[%clk 00:45:10]} {[%emt 00:00:10]} 18. Nb3
{[%clk 01:01:22]} {[%emt 00:05:03]} Nxb3 {[%clk 00:44:46]} {[%emt 00:00:55]} 19.
Qxb3 {[%clk 01:01:51]} {[%emt 00:00:01]} a5 {[%clk 00:43:36]} {[%emt 00:01:40]}
20. Bd3 {[%clk 01:02:01]} {[%emt 00:00:20]} Bg6 {[%clk 00:32:44]} {[%emt
00:11:21]} 21. Bxg6 {[%clk 01:01:29]} {[%emt 00:01:01]} hxg6 {[%clk 00:33:11]}
{[%emt 00:00:04]} 22. Rc2 {[%clk 01:01:28]} {[%emt 00:00:31]} Rc7 {[%clk
00:25:56]} {[%emt 00:07:46]} 23. Rfc1 {[%clk 01:00:16]} {[%emt 00:01:41]} Rac8
{[%clk 00:26:20]} {[%emt 00:00:06]} 24. Qd3 {[%clk 00:55:50]} {[%emt 00:04:56]}
Rxc2 {[%clk 00:25:32]} {[%emt 00:01:19]} 25. Rxc2 {[%clk 00:56:18]} {[%emt
00:00:02]} Rc6 {[%clk 00:25:43]} {[%emt 00:00:19]} 26. g3 {[%clk 00:34:52]}
{[%emt 00:21:55]} Qc7 {[%clk 00:25:44]} {[%emt 00:00:29]} 27. Rxc6 {[%clk
00:34:55]} {[%emt 00:00:27]} Qxc6 {[%clk 00:26:11]} {[%emt 00:00:03]} 28. Qb5
{[%clk 00:32:06]} {[%emt 00:03:19]} Qc1+ {[%clk 00:25:17]} {[%emt 00:01:25]} 29.
Kg2 {[%clk 00:32:35]} {[%emt 00:00:01]} Qxb2 {[%clk 00:25:42]} {[%emt
00:00:05]} 30. Qxa5 {[%clk 00:32:55]} {[%emt 00:00:10]} Kh7 {[%clk 00:20:33]}
{[%emt 00:05:38]} 31. Qd8 {[%clk 00:27:36]} {[%emt 00:05:50]} f6 {[%clk
00:18:31]} {[%emt 00:02:32]} 32. a5 {[%clk 00:27:46]} {[%emt 00:00:19]} Qc2
{[%clk 00:17:02]} {[%emt 00:02:00]} 33. a6 {[%clk 00:27:43]} {[%emt 00:00:33]}
Qe4+ {[%clk 00:16:55]} {[%emt 00:00:37]} 34. f3 {[%clk 00:27:13]} {[%emt
00:01:00]} Qc2+ {[%clk 00:17:19]} {[%emt 00:00:05]} 35. Kh3 {[%clk 00:27:20]}
{[%emt 00:00:21]} Qf5+ {[%clk 00:17:13]} {[%emt 00:00:38]} 36. Kg2 {[%clk
00:27:43]} {[%emt 00:00:07]} Qc2+ {[%clk 00:17:39]} {[%emt 00:00:04]} 37. Kh3
{[%clk 00:28:10]} {[%emt 00:00:02]} Qe2 {[%clk 00:10:14]} {[%emt 00:07:55]} 38.
a7 {[%clk 00:28:15]} {[%emt 00:00:26]} Qxf3 {[%clk 00:10:12]} {[%emt 00:00:32]}
39. e4 {[%clk 00:20:05]} {[%emt 00:08:39]} dxe4 {[%clk 00:08:42]} {[%emt
00:02:01]} 40. Qa5 {[%clk 00:20:32]} {[%emt 00:00:02]} Qf1+ {[%clk 00:08:29]}
{[%emt 00:00:44]} 41. Kh4 {[%clk 00:15:59]} {[%emt 00:05:03]} g5+ {[%clk
00:08:29]} {[%emt 00:00:30]} 42. Kg4 {[%clk 00:16:21]} {[%emt 00:00:08]} f5+
{[%clk 00:08:46]} {[%emt 00:00:14]} 43. Kh5 {[%clk 00:16:02]} {[%emt 00:00:48]}
Qh3+ {[%clk 00:09:01]} {[%emt 00:00:15]} 44. Kxg5 {[%clk 00:16:27]} {[%emt
00:00:05]} Qh6# {[%clk 00:09:28]} {[%emt 00:00:04]} 0-1

[Event "Juniorallsvenskan 2019, Division 1 and 2"]
[Site "Molnlycke kulturhus, Biblioteksgatan 2, Molnlycke, Sweden"]
[Date "2019.11.24"]
[Round "5.10"]
[White "Petersson, Baldur Teodor"]
[Black "Bensryd, Hampus"]
[Result "1-0"]
[TimeControl "90 minutes + 30 seconds per move from move one"]
[WhiteTitle "CM"]
[WhiteFideId "2309157"]
[BlackFideId "1738330"]
[WhiteElo "2216"]
[BlackElo "1977"]

1. e4 {[%clk 01:30:43]} {[%emt 00:00:15]} e5 {[%clk 01:30:40]} {[%emt
00:00:20]} 2. Nf3 {[%clk 01:30:57]} {[%emt 00:00:17]} Nc6 {[%clk 01:30:58]}
{[%emt 00:00:11]} 3. Nc3 {[%clk 01:31:20]} {[%emt 00:00:07]} Nf6 {[%clk
01:29:47]} {[%emt 00:01:41]} 4. Be2 {[%clk 01:31:43]} {[%emt 00:00:07]} Bb4
{[%clk 01:27:06]} {[%emt 00:03:11]} 5. Nd5 {[%clk 01:10:15]} {[%emt 00:21:59]}
Ba5 {[%clk 01:22:39]} {[%emt 00:04:56]} 6. Nxf6+ {[%clk 01:10:31]} {[%emt
00:00:14]} Qxf6 {[%clk 01:21:54]} {[%emt 00:01:15]} 7. O-O {[%clk 01:10:05]}
{[%emt 00:00:56]} O-O {[%clk 01:19:46]} {[%emt 00:02:39]} 8. c3 {[%clk
01:09:42]} {[%emt 00:00:52]} Bb6 {[%clk 01:18:50]} {[%emt 00:01:26]} 9. d3
{[%clk 01:08:54]} {[%emt 00:01:18]} h6 {[%clk 01:10:45]} {[%emt 00:08:35]} 10.
b4 {[%clk 01:08:42]} {[%emt 00:00:41]} d6 {[%clk 01:07:40]} {[%emt 00:03:35]}
11. a4 {[%clk 01:06:36]} {[%emt 00:02:36]} a6 {[%clk 01:03:06]} {[%emt
00:05:05]} 12. Be3 {[%clk 01:06:27]} {[%emt 00:00:39]} Bxe3 {[%clk 01:02:00]}
{[%emt 00:01:36]} 13. fxe3 {[%clk 01:06:54]} {[%emt 00:00:02]} Qg6 {[%clk
01:02:07]} {[%emt 00:00:24]} 14. Qd2 {[%clk 01:06:11]} {[%emt 00:01:12]} Ne7
{[%clk 00:59:00]} {[%emt 00:03:37]} 15. Rf2 {[%clk 01:01:15]} {[%emt 00:05:27]}
Be6 {[%clk 00:51:59]} {[%emt 00:07:30]} 16. Raf1 {[%clk 00:59:48]} {[%emt
00:01:57]} f5 {[%clk 00:45:40]} {[%emt 00:06:50]} 17. exf5 {[%clk 00:58:19]}
{[%emt 00:01:59]} Nxf5 {[%clk 00:45:28]} {[%emt 00:00:42]} 18. e4 {[%clk
00:58:26]} {[%emt 00:00:23]} Ne7 {[%clk 00:45:11]} {[%emt 00:00:47]} 19. Nh4
{[%clk 00:57:13]} {[%emt 00:01:43]} Qh7 {[%clk 00:44:24]} {[%emt 00:01:18]} 20.
Qd1 {[%clk 00:54:57]} {[%emt 00:02:46]} g5 {[%clk 00:37:44]} {[%emt 00:07:11]}
21. Bg4 {[%clk 00:54:42]} {[%emt 00:00:44]} Bf7 {[%clk 00:35:35]} {[%emt
00:02:39]} 22. Rxf7 {[%clk 00:44:38]} {[%emt 00:10:34]} Rxf7 {[%clk 00:35:57]}
{[%emt 00:00:08]} 23. Be6 {[%clk 00:45:00]} {[%emt 00:00:07]} Raf8 {[%clk
00:36:13]} {[%emt 00:00:13]} 24. Nf5 {[%clk 00:45:12]} {[%emt 00:00:19]} Kh8
{[%clk 00:34:23]} {[%emt 00:02:21]} 25. Bxf7 {[%clk 00:44:14]} {[%emt
00:01:27]} Rxf7 {[%clk 00:34:50]} {[%emt 00:00:03]} 26. Qh5 {[%clk 00:41:53]}
{[%emt 00:02:51]} Nxf5 {[%clk 00:31:21]} {[%emt 00:04:00]} 27. exf5 {[%clk
00:42:13]} {[%emt 00:00:09]} Qg7 {[%clk 00:30:54]} {[%emt 00:00:57]} 28. Qf3
{[%clk 00:40:59]} {[%emt 00:01:44]} c6 {[%clk 00:29:56]} {[%emt 00:01:29]} 29.
g4 {[%clk 00:41:09]} {[%emt 00:00:20]} Rf6 {[%clk 00:28:59]} {[%emt 00:01:28]}
30. b5 {[%clk 00:39:46]} {[%emt 00:01:53]} axb5 {[%clk 00:25:13]} {[%emt
00:04:16]} 31. axb5 {[%clk 00:40:11]} {[%emt 00:00:05]} Qc7 {[%clk 00:25:25]}
{[%emt 00:00:18]} 32. Rb1 {[%clk 00:38:41]} {[%emt 00:02:00]} Qb6+ {[%clk
00:22:57]} {[%emt 00:02:59]} 33. Qf2 {[%clk 00:38:57]} {[%emt 00:00:14]} Qxf2+
{[%clk 00:17:17]} {[%emt 00:06:10]} 34. Kxf2 {[%clk 00:39:23]} {[%emt
00:00:03]} Rf7 {[%clk 00:17:21]} {[%emt 00:00:26]} 35. bxc6 {[%clk 00:36:15]}
{[%emt 00:03:38]} bxc6 {[%clk 00:17:44]} {[%emt 00:00:08]} 36. Rb8+ {[%clk
00:36:40]} {[%emt 00:00:05]} Kg7 {[%clk 00:17:46]} {[%emt 00:00:28]} 37. Rc8
{[%clk 00:37:05]} {[%emt 00:00:05]} c5 {[%clk 00:15:59]} {[%emt 00:02:17]} 38.
Kf3 {[%clk 00:36:37]} {[%emt 00:00:57]} Ra7 {[%clk 00:15:22]} {[%emt 00:01:07]}
39. Ke4 {[%clk 00:35:19]} {[%emt 00:01:48]} Ra4+ {[%clk 00:15:12]} {[%emt
00:00:41]} 40. c4 {[%clk 00:35:40]} {[%emt 00:00:10]} Ra2 {[%clk 00:15:15]}
{[%emt 00:00:27]} 41. Kd5 {[%clk 00:35:30]} {[%emt 00:00:40]} Rxh2 {[%clk
00:14:12]} {[%emt 00:01:34]} 42. Ke6 {[%clk 00:35:32]} {[%emt 00:00:27]} Rf2
{[%clk 00:13:30]} {[%emt 00:01:11]} 43. Rc7+ {[%clk 00:35:45]} {[%emt
00:00:18]} Kg8 {[%clk 00:13:13]} {[%emt 00:00:47]} 44. f6 {[%clk 00:35:44]}
{[%emt 00:00:31]} Rf4 {[%clk 00:13:24]} {[%emt 00:00:19]} 45. Rc8+ {[%clk
00:36:08]} {[%emt 00:00:07]} Kh7 {[%clk 00:13:50]} {[%emt 00:00:04]} 46. f7
{[%clk 00:36:25]} {[%emt 00:00:13]} 1-0

[Event "Juniorallsvenskan 2019, Division 1 and 2"]
[Site "Molnlycke kulturhus, Biblioteksgatan 2, Molnlycke, Sweden"]
[Date "2019.11.24"]
[Round "5.11"]
[White "Ulles, Jean-Clement"]
[Black "Carlsson, Ludvig"]
[Result "1/2-1/2"]
[TimeControl "90 minutes + 30 seconds per move from move one"]
[BlackTitle "CM"]
[WhiteFideId "26007029"]
[BlackFideId "1727010"]
[WhiteElo "1943"]
[BlackElo "2146"]

1. e4 {[%clk 01:30:58]} {[%emt 00:00:01]} b6 {[%clk 01:30:52]} {[%emt
00:00:08]} 2. d4 {[%clk 01:30:19]} {[%emt 00:01:10]} Bb7 {[%clk 01:31:11]}
{[%emt 00:00:09]} 3. Bd3 {[%clk 01:29:26]} {[%emt 00:01:24]} e6 {[%clk
01:31:30]} {[%emt 00:00:11]} 4. Nf3 {[%clk 01:28:34]} {[%emt 00:01:22]} Nf6
{[%clk 01:31:40]} {[%emt 00:00:19]} 5. Qe2 {[%clk 01:27:14]} {[%emt 00:01:52]}
d5 {[%clk 01:31:54]} {[%emt 00:00:15]} 6. e5 {[%clk 01:23:01]} {[%emt
00:04:44]} Nfd7 {[%clk 01:32:15]} {[%emt 00:00:08]} 7. Bg5 {[%clk 01:20:32]}
{[%emt 00:03:00]} Be7 {[%clk 01:30:26]} {[%emt 00:02:17]} 8. Bxe7 {[%clk
01:18:41]} {[%emt 00:02:22]} Qxe7 {[%clk 01:30:46]} {[%emt 00:00:10]} 9. c3
{[%clk 01:18:06]} {[%emt 00:01:06]} c5 {[%clk 01:28:46]} {[%emt 00:02:28]} 10.
O-O {[%clk 01:14:50]} {[%emt 00:03:46]} Nc6 {[%clk 01:29:00]} {[%emt 00:00:16]}
11. a3 {[%clk 01:05:24]} {[%emt 00:09:58]} g5 {[%clk 01:28:13]} {[%emt
00:01:16]} 12. Qe3 {[%clk 01:02:43]} {[%emt 00:03:11]} g4 {[%clk 01:20:32]}
{[%emt 00:08:10]} 13. Ne1 {[%clk 01:01:55]} {[%emt 00:01:17]} h5 {[%clk
01:20:28]} {[%emt 00:00:34]} 14. Nd2 {[%clk 00:53:02]} {[%emt 00:09:24]} O-O-O
{[%clk 01:07:26]} {[%emt 00:13:32]} 15. Bb5 {[%clk 00:38:09]} {[%emt 00:15:24]}
Kb8 {[%emt 00:11:13]} 16. Nc2 {[%emt 00:04:32]} Rc8 {[%clk 00:57:40]} {[%emt
00:00:25]} 17. Rfc1 {[%clk 00:30:48]} {[%emt 00:02:57]} h4 {[%clk 00:50:59]}
{[%emt 00:07:10]} 18. Bxc6 {[%clk 00:27:40]} {[%emt 00:03:38]} Bxc6 {[%clk
00:51:07]} {[%emt 00:00:21]} 19. c4 {[%clk 00:25:51]} {[%emt 00:02:19]} g3
{[%clk 00:49:20]} {[%emt 00:02:17]} 20. fxg3 {[%clk 00:25:01]} {[%emt
00:01:21]} hxg3 {[%clk 00:49:42]} {[%emt 00:00:07]} 21. h3 {[%clk 00:25:08]}
{[%emt 00:00:23]} dxc4 {[%clk 00:49:28]} {[%emt 00:00:45]} 22. Nxc4 {[%clk
00:24:30]} {[%emt 00:01:08]} Qh4 {[%clk 00:43:52]} {[%emt 00:06:05]} 23. Qd2
{[%clk 00:22:05]} {[%emt 00:02:55]} Rh5 {[%clk 00:35:54]} {[%emt 00:08:27]} 24.
Nd6 {[%clk 00:18:56]} {[%emt 00:03:40]} Rch8 {[%clk 00:36:18]} {[%emt
00:00:05]} 25. Nb4 {[%clk 00:18:23]} {[%emt 00:01:03]} Be4 {[%clk 00:27:48]}
{[%emt 00:08:59]} 26. Na6+ {[%clk 00:10:47]} {[%emt 00:08:07]} Ka8 {[%clk
00:28:17]} {[%emt 00:00:02]} 27. dxc5 {[%clk 00:08:25]} {[%emt 00:02:52]} Nxe5
{[%clk 00:21:38]} {[%emt 00:07:08]} 28. Nc7+ {[%clk 00:01:55]} {[%emt
00:07:01]} Kb8 {[%clk 00:22:07]} {[%emt 00:00:02]} 29. Na6+ {[%clk 00:01:30]}
{[%emt 00:00:55]} Ka8 {[%clk 00:22:35]} {[%emt 00:00:02]} 30. Nc7+ {[%clk
00:01:27]} {[%emt 00:00:33]} Kb8 {[%clk 00:23:00]} {[%emt 00:00:05]} 31. Na6+
{[%clk 00:00:44]} 1/2-1/2

[Event "Juniorallsvenskan 2019, Division 1 and 2"]
[Site "Molnlycke kulturhus, Biblioteksgatan 2, Molnlycke, Sweden"]
[Date "2019.11.24"]
[Round "5.12"]
[White "Emmoth, Alfons"]
[Black "Nord, Alexander"]
[Result "1/2-1/2"]
[TimeControl "90 minutes + 30 seconds per move from move one"]
[WhiteFideId "1718266"]
[BlackFideId "1738135"]
[WhiteElo "2066"]
[BlackElo "1845"]

1. d4 {[%clk 01:30:58]} {[%emt 00:00:01]} e6 {[%clk 01:30:55]} {[%emt
00:00:05]} 2. c4 {[%clk 01:31:25]} {[%emt 00:00:05]} Nf6 {[%clk 01:31:22]}
{[%emt 00:00:03]} 3. Nc3 {[%clk 01:31:50]} {[%emt 00:00:05]} Bb4 {[%clk
01:31:48]} {[%emt 00:00:03]} 4. Qc2 {[%clk 01:32:14]} {[%emt 00:00:06]} Nc6
{[%clk 01:32:12]} {[%emt 00:00:07]} 5. Nf3 {[%clk 01:32:18]} {[%emt 00:00:25]}
d6 {[%clk 01:32:32]} {[%emt 00:00:09]} 6. Bd2 {[%clk 01:30:48]} {[%emt
00:02:00]} O-O {[%clk 01:32:55]} {[%emt 00:00:07]} 7. a3 {[%clk 01:28:32]}
{[%emt 00:02:47]} Bxc3 {[%clk 01:33:16]} {[%emt 00:00:08]} 8. Bxc3 {[%clk
01:28:55]} {[%emt 00:00:06]} Qe7 {[%clk 01:32:59]} {[%emt 00:00:47]} 9. e3
{[%clk 01:25:20]} {[%emt 00:04:07]} e5 {[%clk 01:31:31]} {[%emt 00:01:57]} 10.
d5 {[%clk 01:23:07]} {[%emt 00:02:43]} Nb8 {[%clk 01:31:50]} {[%emt 00:00:11]}
11. Nd2 {[%clk 01:23:35]} {[%emt 00:00:02]} c6 {[%clk 01:31:20]} {[%emt
00:01:00]} 12. e4 {[%clk 01:22:01]} {[%emt 00:02:05]} cxd5 {[%clk 01:31:21]}
{[%emt 00:00:28]} 13. cxd5 {[%clk 01:21:59]} {[%emt 00:00:32]} Nh5 {[%clk
01:31:18]} {[%emt 00:00:34]} 14. g3 {[%clk 01:09:19]} {[%emt 00:13:09]} f5
{[%clk 01:18:36]} {[%emt 00:13:11]} 15. exf5 {[%clk 01:00:28]} {[%emt
00:09:22]} Bxf5 {[%clk 01:18:26]} {[%emt 00:00:38]} 16. Bd3 {[%clk 00:58:31]}
{[%emt 00:02:28]} Bxd3 {[%clk 01:13:24]} {[%emt 00:05:32]} 17. Qxd3 {[%clk
00:58:54]} {[%emt 00:00:08]} Nd7 {[%clk 01:10:16]} {[%emt 00:03:36]} 18. Ne4
{[%clk 00:54:36]} {[%emt 00:04:50]} Rac8 {[%clk 00:59:56]} {[%emt 00:10:48]} 19.
Bb4 {[%clk 00:47:23]} {[%emt 00:07:44]} Nc5 {[%clk 00:59:59]} {[%emt 00:00:26]}
20. Nxc5 {[%clk 00:47:38]} {[%emt 00:00:17]} dxc5 {[%clk 01:00:09]} {[%emt
00:00:19]} 21. Bc3 {[%clk 00:48:07]} {[%emt 00:00:02]} Nf6 {[%clk 00:53:34]}
{[%emt 00:07:05]} 22. Qc4 {[%clk 00:43:03]} {[%emt 00:05:34]} Qf7 {[%clk
00:49:05]} {[%emt 00:04:57]} 23. O-O {[%clk 00:40:44]} {[%emt 00:02:51]}
1/2-1/2